bitfinex/quotes_BTCUSD_20240918
["timestamp","ask_amount","ask_price","bid_price","bid_amount"]
[1726692212637,0.08101561,60269.0,60268.0,0.50725341]
[1726692213093,0.24693761,60269.0,60268.0,0.00947741]
[1726692213337,0.91062761,60269.0,60268.0,0.00947741]
[1726692213601,1.67431761,60269.0,60268.0,0.00947741]
[1726692213846,1.67431761,60269.0,60268.0,0.004]
[1726692214095,1.68327041,60269.0,60268.0,0.004]
[1726692214582,1.161496,60267.0,60266.0,0.001644]
[1726692216261,1.161496,60267.0,60266.0,0.004644]
[1726692217750,1.36310088,60267.0,60266.0,0.004644]
[1726692218405,1.21367236,60267.0,60266.0,0.004644]
[1726692218635,1.31367236,60267.0,60266.0,0.004644]
[1726692219147,1.46307609,60267.0,60266.0,0.004644]
[1726692219796,1.46309725,60267.0,60266.0,0.004644]
[1726692220047,1.31367236,60267.0,60266.0,0.004644]
[1726692220261,1.46310044,60267.0,60266.0,0.004644]
[1726692220468,1.46312033,60267.0,60266.0,0.004644]
[1726692220681,1.31367236,60267.0,60266.0,0.004644]
[1726692221321,1.46306181,60267.0,60266.0,0.004644]
[1726692222153,1.31367236,60267.0,60266.0,0.004644]
[1726692226737,1.43802106,60267.0,60266.0,0.004644]
[1726692227196,1.43801833,60267.0,60266.0,0.004644]
[1726692228393,1.31367236,60267.0,60266.0,0.004644]
[1726692228862,1.41312453,60267.0,60266.0,0.004644]
[1726692229085,1.41312445,60267.0,60266.0,0.004644]
[1726692229308,1.31367236,60267.0,60266.0,0.004644]
[1726692230107,1.41312445,60267.0,60266.0,0.004644]
[1726692230319,1.38825005,60267.0,60266.0,0.004644]
[1726692230745,1.31367236,60267.0,60266.0,0.004644]
[1726692231167,1.38824832,60267.0,60266.0,0.004644]
[1726692231794,1.31367236,60267.0,60266.0,0.004644]
[1726692232421,1.38824111,60267.0,60266.0,0.004644]
[1726692232853,2.264798,60267.0,60266.0,0.004644]
[1726692233070,2.23246994,60267.0,60266.0,0.004644]
[1726692233506,2.07199534,60267.0,60266.0,0.004644]
[1726692233722,1.90690976,60267.0,60266.0,0.004644]
[1726692233979,1.87690976,60267.0,60266.0,0.001644]
[1726692234207,1.32567236,60267.0,60266.0,0.001644]
[1726692234916,1.65752836,60267.0,60266.0,0.001644]
[1726692235130,1.64552836,60267.0,60266.0,0.001644]
[1726692235338,1.32767236,60267.0,60266.0,0.001644]
[1726692235971,1.33667236,60267.0,60266.0,0.001644]
[1726692236645,1.46088698,60267.0,60266.0,0.001644]
[1726692237102,1.43788698,60267.0,60266.0,0.001644]
[1726692237550,1.44588698,60267.0,60266.0,0.001644]
[1726692237793,1.42103617,60267.0,60266.0,0.001644]
[1726692238016,1.42703617,60267.0,60266.0,0.001644]
[1726692238241,1.41303617,60267.0,60266.0,0.001644]
[1726692238458,1.41703617,60267.0,60266.0,0.001644]
[1726692240204,1.31367236,60267.0,60266.0,0.001644]
[1726692240501,1.31667236,60267.0,60266.0,0.001644]
[1726692240729,0.168928,60267.0,60266.0,0.001644]
[1726692240952,0.83264,60267.0,60266.0,0.001644]
[1726692241641,0.82964,60267.0,60266.0,0.001644]
[1726692242096,0.83064,60267.0,60266.0,0.005644]
[1726692244301,0.8819912,60267.0,60266.0,0.005644]
[1726692244709,0.831462,60267.0,60266.0,0.005644]
[1726692245126,0.88281503,60267.0,60266.0,0.005644]
[1726692245541,0.831462,60267.0,60266.0,0.005644]
[1726692246387,0.88281642,60267.0,60266.0,0.005644]
[1726692246605,0.831462,60267.0,60266.0,0.005644]
[1726692247229,0.88281769,60267.0,60266.0,0.005644]
[1726692247861,0.55096169,60267.0,60266.0,0.005644]
[1726692249000,0.88281769,60267.0,60266.0,0.005644]
[1726692249497,0.55096169,60267.0,60266.0,0.005644]
[1726692250978,0.499606,60267.0,60266.0,0.005644]
[1726692254292,0.001822,60267.0,60266.0,0.105544]
[1726692254506,0.16775,60267.0,60266.0,0.105544]
[1726692254952,0.16775,60267.0,60266.0,0.769268]
[1726692254953,0.001822,60267.0,60266.0,0.769268]
[1726692255174,0.001822,60267.0,60266.0,0.935199]
[1726692255388,0.001822,60267.0,60266.0,1.345761]
[1726692256580,0.02685827,60269.0,60266.0,0.207244]
[1726692256831,0.000822,60269.0,60268.0,1.7209504]
[1726692257076,0.000822,60269.0,60268.0,2.06000407]
[1726692257525,0.24888623,60278.0,60277.0,1.217543]
[1726692257752,0.000822,60283.0,60282.0,0.553899]
[1726692257987,0.000822,60283.0,60282.0,1.5648264]
[1726692258459,0.000822,60283.0,60282.0,1.8985994]
[1726692258688,0.000823,60295.0,60294.0,0.49756]
[1726692258914,0.000823,60295.0,60294.0,0.263153]
[1726692259379,0.000823,60295.0,60294.0,0.0973]
[1726692259841,0.000823,60295.0,60294.0,1.001767]
[1726692260061,0.000823,60295.0,60294.0,1.035007]
[1726692260510,0.000823,60295.0,60294.0,1.366714]
[1726692260748,0.001823,60295.0,60294.0,1.375714]
[1726692260993,0.001823,60295.0,60294.0,1.366714]
[1726692261475,0.002823,60295.0,60294.0,1.378714]
[1726692263753,0.002823,60295.0,60294.0,1.401714]
[1726692264678,0.0039267,60302.0,60301.0,1.002872]
[1726692264913,0.0039267,60302.0,60301.0,1.5059224]
[1726692266923,0.0039267,60302.0,60301.0,1.002872]
[1726692267388,0.0049267,60302.0,60301.0,1.008872]
[1726692267870,0.0049267,60302.0,60301.0,1.042112]
[1726692268134,0.0047487,60302.0,60301.0,1.036112]
[1726692268387,0.0057487,60302.0,60301.0,1.376781]
[1726692268665,0.0057487,60302.0,60301.0,1.367781]
[1726692269063,0.0057487,60302.0,60301.0,1.2304934]
[1726692269280,0.0057487,60302.0,60301.0,1.5621624]
[1726692269965,0.0067487,60302.0,60301.0,1.5761624]
[1726692272333,0.0067487,60302.0,60301.0,1.073112]
[1726692272821,0.0067487,60302.0,60301.0,1.404781]
[1726692273301,0.0067487,60302.0,60301.0,0.741443]
[1726692273736,0.0067487,60302.0,60301.0,1.073112]
[1726692275132,0.0067487,60302.0,60301.0,1.404781]
[1726692275329,0.0067487,60302.0,60301.0,1.073112]
[1726692275773,0.0067487,60302.0,60301.0,1.5761624]
[1726692276984,0.0067487,60302.0,60301.0,1.073112]
[1726692277644,0.0067487,60302.0,60301.0,1.404781]
[1726692278092,0.0067487,60302.0,60301.0,1.5761624]
[1726692280733,0.0067487,60302.0,60301.0,1.2444934]
[1726692280948,0.0067487,60302.0,60301.0,1.073112]
[1726692282241,0.0067487,60302.0,60301.0,1.404781]
[1726692282696,0.0067487,60302.0,60301.0,1.073112]
[1726692283294,0.0067487,60302.0,60301.0,1.404781]
[1726692283507,0.0067487,60302.0,60301.0,1.073112]
[1726692283920,0.0067487,60302.0,60301.0,1.404781]
[1726692286095,0.0067487,60302.0,60301.0,1.5761624]
[1726692286821,0.0067487,60302.0,60301.0,1.73921607]
[1726692287740,0.0067487,60302.0,60301.0,1.5761624]
[1726692291576,0.0067487,60302.0,60301.0,1.73921607]
[1726692293132,0.0067487,60302.0,60301.0,1.74121607]
[1726692293340,0.0067487,60302.0,60301.0,2.07088507]
[1726692295613,0.0067487,60302.0,60301.0,1.73921607]
[1726692298142,0.0067487,60302.0,60301.0,1.68029653]
[1726692300738,0.000823,60313.0,60301.0,1.68029653]
[1726692300739,0.000823,60313.0,60312.0,1.26998186]
[1726692300991,0.000823,60313.0,60312.0,2.46707532]
[1726692301229,0.000823,60313.0,60312.0,2.56477393]
[1726692301463,0.000823,60313.0,60312.0,2.46816481]
[1726692301686,0.000823,60313.0,60312.0,2.57330532]
[1726692302180,0.000823,60313.0,60312.0,2.4876962]
[1726692302181,0.001823,60313.0,60312.0,2.4876962]
[1726692302413,0.001823,60313.0,60312.0,2.5980764]
[1726692302657,0.02601059,60336.0,60324.0,0.329011]
[1726692302890,0.0031192,60346.0,60324.0,1.90431868]
[1726692302891,0.99554994,60330.0,60324.0,1.90431868]
[1726692303168,0.99554994,60330.0,60324.0,1.87159959]
[1726692303387,0.000822,60330.0,60324.0,1.9029934]
[1726692303635,0.000822,60330.0,60327.0,0.29874]
[1726692303866,0.99865464,60338.0,60337.0,1.02940786]
[1726692304099,0.99865464,60338.0,60337.0,2.57895167]
[1726692304323,0.99865464,60338.0,60337.0,2.24748067]
[1726692304324,0.0039267,60338.0,60337.0,2.24748067]
[1726692304776,0.0039267,60338.0,60337.0,2.18548067]
[1726692305023,0.0039267,60338.0,60337.0,2.15548067]
[1726692305253,0.99784714,60346.0,60340.0,1.160092]
[1726692305254,0.0031192,60346.0,60340.0,1.160092]
[1726692305472,0.0031192,60346.0,60340.0,1.50938567]
[1726692305702,0.0031192,60346.0,60340.0,1.47938567]
[1726692307980,0.0031192,60346.0,60340.0,1.49338567]
[1726692308207,0.0031192,60346.0,60340.0,1.47938567]
[1726692308428,0.0031192,60346.0,60340.0,1.49338567]
[1726692308648,0.0031192,60346.0,60340.0,0.898877]
[1726692308884,0.165723,60342.0,60339.0,0.03324]
[1726692309100,0.16592487,60341.0,60340.0,0.014]
[1726692309348,0.165727,60340.0,60339.0,0.03324]
[1726692309599,0.00020087,60341.0,60334.0,0.24858926]
[1726692309818,0.00020087,60341.0,60340.0,0.014]
[1726692310933,0.00020087,60341.0,60335.0,0.331481]
[1726692311160,0.00020087,60341.0,60337.0,0.194068]
[1726692311389,0.00020087,60341.0,60340.0,0.528182]
[1726692311622,0.00020087,60341.0,60340.0,0.520182]
[1726692311851,0.00020087,60341.0,60340.0,0.857637]
[1726692312332,0.00020087,60341.0,60340.0,1.14374067]
[1726692312559,0.00020087,60341.0,60340.0,1.47519567]
[1726692313005,0.00020087,60341.0,60340.0,1.14374067]
[1726692313423,0.00020087,60341.0,60340.0,1.47519567]
[1726692314108,0.00020087,60341.0,60340.0,1.48919567]
[1726692314330,0.00020087,60341.0,60340.0,1.15774067]
[1726692314783,0.00020087,60341.0,60340.0,1.17174067]
[1726692315220,0.00020087,60341.0,60340.0,1.50319567]
[1726692315431,0.00020087,60341.0,60340.0,1.17174067]
[1726692315659,0.00020087,60341.0,60340.0,1.008687]
[1726692315916,0.00020087,60341.0,60340.0,0.028]
[1726692316131,0.16592487,60341.0,60340.0,0.028]
[1726692316386,0.49737387,60341.0,60340.0,0.028]
[1726692316602,1.16027187,60341.0,60340.0,0.028]
[1726692317050,1.18627863,60341.0,60340.0,0.028]
[1726692317530,0.85482963,60341.0,60340.0,0.028]
[1726692317754,0.85565063,60341.0,60340.0,0.028]
[1726692318264,0.52420163,60341.0,60340.0,0.006]
[1726692318496,0.497248,60332.0,60331.0,0.24858926]
[1726692318727,0.999815,60332.0,60331.0,0.24858926]
[1726692318957,0.999815,60332.0,60323.0,0.24858926]
[1726692318958,0.165771,60324.0,60323.0,0.24858926]
[1726692319402,0.165766,60326.0,60323.0,0.41436226]
[1726692319627,0.165766,60326.0,60322.0,0.165776]
[1726692319852,0.331526,60327.0,60318.0,0.33157]
[1726692320076,0.331526,60327.0,60319.0,0.165784]
[1726692320077,0.165776,60323.0,60319.0,0.165784]
[1726692320295,0.165776,60323.0,60317.0,0.24858926]
[1726692320296,0.331539,60325.0,60317.0,0.16579]
[1726692320523,0.165786,60319.0,60313.0,0.331602]
[1726692320809,0.331544,60324.0,60302.0,0.0941]
[1726692320810,0.1,60324.0,60302.0,0.0941]
[1726692321041,0.1,60324.0,60310.0,0.99464549]
[1726692321042,0.165807,60311.0,60310.0,0.99464549]
[1726692321254,0.171068,60314.0,60301.0,0.002902]
[1726692321255,0.165831,60302.0,60301.0,0.002902]
[1726692321695,0.16583,60303.0,60301.0,0.002902]
[1726692321949,0.331623,60310.0,60301.0,0.002902]
[1726692321950,0.165816,60308.0,60301.0,0.002902]
[1726692322167,0.99464549,60319.0,60301.0,0.002902]
[1726692322168,0.99464549,60319.0,60317.0,0.007]
[1726692322395,0.52338253,60318.0,60317.0,0.007]
[1726692322617,0.165802,60313.0,60307.0,0.165817]
[1726692322838,0.165802,60313.0,60302.0,0.023]
[1726692322839,0.02602053,60318.0,60314.0,0.165798]
[1726692323063,0.02602053,60318.0,60314.0,0.165797]
[1726692323287,0.19180953,60318.0,60313.0,0.1658]
[1726692323549,0.165791,60317.0,60311.0,0.497415]
[1726692323774,0.165791,60317.0,60312.0,0.165803]
[1726692324280,0.35759653,60318.0,60303.0,0.03325]
[1726692324548,0.165808,60311.0,60307.0,1.16046149]
[1726692324764,0.02602053,60318.0,60307.0,1.16046149]
[1726692324765,0.331582,60317.0,60307.0,0.99464549]
[1726692325009,0.165814,60309.0,60305.0,0.199073]
[1726692325235,0.165814,60309.0,60306.0,0.99464549]
[1726692325485,0.165814,60309.0,60305.0,0.199073]
[1726692325705,0.165799,60314.0,60310.0,0.165808]
[1726692325943,0.02601976,60314.0,60307.0,0.003]
[1726692326214,0.02601976,60314.0,60311.0,0.331614]
[1726692326431,0.02601976,60314.0,60313.0,0.497404]
[1726692326659,0.02601976,60314.0,60313.0,0.829007]
[1726692326884,0.331528,60327.0,60318.0,0.331574]
[1726692327105,0.331546,60324.0,60317.0,0.165788]
[1726692327323,0.02601616,60322.0,60313.0,0.364853]
[1726692327569,0.02601616,60322.0,60318.0,0.165787]
[1726692327570,0.19179416,60322.0,60318.0,0.165787]
[1726692328017,0.165779,60321.0,60318.0,0.165787]
[1726692328249,0.165782,60320.0,60314.0,0.331595]
[1726692328473,0.165782,60320.0,60316.0,0.165792]
[1726692328697,0.16578,60321.0,60317.0,0.165788]
[1726692328935,0.02601616,60322.0,60316.0,0.0797]
[1726692329179,0.02601616,60322.0,60321.0,0.165779]
[1726692329424,0.331494,60333.0,60321.0,0.331559]
[1726692329652,0.99464549,60327.0,60324.0,0.331538]
[1726692329913,0.165758,60329.0,60325.0,0.165767]
[1726692330177,0.35752792,60330.0,60318.0,0.99464549]
[1726692330414,0.02601292,60330.0,60326.0,0.331528]
[1726692330628,0.02601292,60330.0,60327.0,0.331526]
[1726692330850,0.19176992,60330.0,60324.0,0.331541]
[1726692331070,0.02601292,60330.0,60328.0,0.165759]
[1726692331515,0.02601292,60330.0,60326.0,0.165763]
[1726692331735,0.19176892,60330.0,60325.0,0.331535]
[1726692331964,0.19176892,60330.0,60321.0,0.331554]
[1726692331965,0.02601292,60330.0,60321.0,0.331554]
[1726692332195,0.02601292,60330.0,60314.0,0.364847]
[1726692332196,0.331562,60321.0,60314.0,0.364847]
[1726692332400,0.02601292,60330.0,60314.0,0.364847]
[1726692332401,0.165774,60323.0,60322.0,0.99464549]
[1726692332582,0.165777,60322.0,60319.0,0.165785]
[1726692333307,0.331535,60326.0,60319.0,0.331566]
[1726692333582,0.19176792,60330.0,60326.0,0.165764]
[1726692333789,0.19176792,60330.0,60320.0,0.00331531]
[1726692333790,0.331522,60328.0,60322.0,0.03325]
[1726692334007,0.165765,60327.0,60323.0,0.165773]
[1726692334228,0.165759,60329.0,60325.0,0.165768]
[1726692334446,0.165762,60328.0,60323.0,0.331545]
[1726692334660,0.02601292,60330.0,60325.0,0.99464549]
[1726692334891,0.331527,60327.0,60321.0,0.165779]
[1726692335136,0.331521,60328.0,60324.0,0.16577]
[1726692335353,0.165765,60327.0,60323.0,0.165773]
[1726692335615,0.165765,60327.0,60324.0,0.165771]
[1726692336063,0.16576,60328.0,60325.0,0.165768]
[1726692337139,0.16576,60328.0,60324.0,0.006]
[1726692337358,0.165763,60327.0,60324.0,0.006]
[1726692337576,0.165763,60327.0,60324.0,0.17177]
[1726692337795,0.165763,60327.0,60324.0,0.16577]
[1726692338015,0.331518,60329.0,60324.0,0.16577]
[1726692338016,0.16576,60328.0,60324.0,0.16577]
[1726692338450,0.16576,60328.0,60325.0,0.165767]
[1726692338664,0.02601292,60330.0,60329.0,0.165757]
[1726692338880,0.02601292,60330.0,60328.0,0.165759]
[1726692339112,0.02601292,60330.0,60321.0,0.425158]
[1726692339113,0.02601292,60330.0,60329.0,0.497272]
[1726692339343,0.02601292,60330.0,60329.0,0.851787]
[1726692339555,0.00102187,60341.0,60340.0,0.165727]
[1726692340048,0.00102187,60341.0,60340.0,0.497182]
[1726692340240,0.00102187,60341.0,60339.0,0.16573]
[1726692340700,0.00102187,60341.0,60338.0,0.331461]
[1726692340701,0.00102187,60341.0,60340.0,0.165727]
[1726692341139,0.00102187,60341.0,60340.0,0.170727]
[1726692341809,0.00102187,60341.0,60340.0,0.502182]
[1726692342483,0.00102187,60341.0,60340.0,0.165727]
[1726692342694,0.00102187,60341.0,60324.0,0.28920536]
[1726692342695,0.00102187,60341.0,60339.0,0.005]
[1726692342914,0.00102187,60341.0,60340.0,0.165727]
[1726692343351,0.00102187,60341.0,60340.0,0.171727]
[1726692343574,0.00102187,60341.0,60340.0,0.337455]
[1726692343800,0.00102187,60341.0,60339.0,0.165729]
[1726692344013,0.00102187,60341.0,60339.0,0.006]
[1726692344226,0.165727,60340.0,60335.0,0.03325]
[1726692344442,0.165727,60340.0,60336.0,0.165737]
[1726692344663,0.16674587,60341.0,60337.0,0.165733]
[1726692344889,0.00102187,60341.0,60338.0,0.331464]
[1726692345149,0.00102187,60341.0,60336.0,0.331475]
[1726692345150,0.00102187,60341.0,60339.0,0.165729]
[1726692345366,0.00102187,60341.0,60338.0,0.165733]
[1726692345801,0.00102187,60341.0,60340.0,0.006]
[1726692346017,0.00102187,60341.0,60339.0,0.16573]
[1726692346448,0.00102187,60341.0,60339.0,0.17173]
[1726692346658,0.00102187,60341.0,60339.0,0.16573]
[1726692347128,0.00102187,60341.0,60340.0,0.006]
[1726692347339,0.00102187,60341.0,60340.0,0.165727]
[1726692348170,0.828637,60340.0,60339.0,0.006]
[1726692348598,1.160092,60340.0,60339.0,0.006]
[1726692348820,1.491547,60340.0,60339.0,0.006]
[1726692349036,0.165768,60325.0,60322.0,0.1793]
[1726692349249,0.165768,60325.0,60322.0,0.11605]
[1726692349250,0.497305,60325.0,60322.0,0.11605]
[1726692349464,0.828842,60325.0,60322.0,0.11605]
[1726692350144,0.828842,60325.0,60315.0,0.0996]
[1726692350389,0.828842,60325.0,60310.0,0.0815]
[1726692350615,1.160379,60325.0,60310.0,0.0815]
[1726692351085,1.160379,60325.0,60309.0,0.041644]
[1726692351086,1.260379,60325.0,60309.0,0.041644]
[1726692351541,1.260379,60325.0,60309.0,0.207456]
[1726692352368,1.260379,60325.0,60324.0,0.010644]
[1726692352589,1.260379,60325.0,60324.0,0.001644]
[1726692353051,1.260379,60325.0,60324.0,0.002644]
[1726692353299,1.260379,60325.0,60324.0,0.001644]
[1726692354269,1.64320069,60325.0,60324.0,0.001644]
[1726692354517,1.260379,60325.0,60324.0,0.001644]
[1726692355262,1.31166374,60325.0,60324.0,0.001644]
[1726692355518,1.260379,60325.0,60324.0,0.001644]
[1726692356497,1.31166424,60325.0,60324.0,0.001644]
[1726692357161,1.260379,60325.0,60324.0,0.001644]
[1726692357371,1.31166427,60325.0,60324.0,0.001644]
[1726692357880,1.31166427,60325.0,60309.0,0.041644]
[1726692357881,0.829047,60310.0,60309.0,0.001644]
[1726692358086,1.160666,60310.0,60309.0,0.001644]
[1726692358309,1.160666,60310.0,60309.0,0.001544]
[1726692358746,1.18668721,60310.0,60309.0,0.001544]
[1726692359413,1.51830621,60310.0,60309.0,0.001544]
[1726692361301,1.18668721,60310.0,60309.0,0.001544]
[1726692363068,0.02802121,60310.0,60309.0,0.498981]
[1726692363323,0.02802121,60310.0,60309.0,0.001544]
[1726692363545,0.02802121,60310.0,60309.0,0.342156]
[1726692363769,0.02802121,60310.0,60309.0,0.673781]
[1726692363984,0.02602121,60310.0,60309.0,0.342156]
[1726692364246,0.02602121,60310.0,60309.0,0.375406]
[1726692364460,0.02602121,60310.0,60309.0,0.376406]
[1726692365921,0.02602121,60310.0,60309.0,0.388406]
[1726692366659,0.02602121,60310.0,60309.0,0.375406]
[1726692367083,0.02602121,60310.0,60309.0,0.387406]
[1726692367535,0.02602121,60310.0,60309.0,0.719031]
[1726692370141,0.02602121,60310.0,60309.0,1.050656]
[1726692370647,0.58023907,60316.0,60309.0,0.209594]
[1726692370857,0.165797,60315.0,60311.0,0.165806]
[1726692371303,0.331589,60316.0,60312.0,0.165803]
[1726692371523,0.165797,60315.0,60312.0,0.165803]
[1726692371952,0.165799,60314.0,60311.0,0.199057]
[1726692372606,0.331587,60316.0,60311.0,0.165806]
[1726692372814,0.35759841,60318.0,60311.0,0.165806]
[1726692372815,0.1658,60314.0,60311.0,0.165806]
[1726692373689,0.1658,60314.0,60310.0,0.199057]
[1726692373906,0.1658,60314.0,60311.0,0.174807]
[1726692374341,0.497412,60312.0,60311.0,0.009]
[1726692374570,1.000088,60312.0,60311.0,0.009]
[1726692374786,1.331696,60312.0,60311.0,0.017]
[1726692375451,1.431696,60312.0,60311.0,0.017]
[1726692376111,1.431696,60312.0,60309.0,0.001544]
[1726692376112,1.160666,60310.0,60309.0,0.001544]
[1726692376338,1.260666,60310.0,60309.0,0.001544]
[1726692376783,1.28668932,60310.0,60309.0,0.001544]
[1726692377284,1.8133939,60310.0,60309.0,0.001544]
[1726692377738,1.28668932,60310.0,60309.0,0.001544]
[1726692378657,1.45775732,60310.0,60309.0,0.001544]
[1726692379144,1.81937632,60310.0,60309.0,0.001544]
[1726692379439,1.70160236,60310.0,60309.0,0.001544]
[1726692379722,2.20428936,60310.0,60309.0,0.001544]
[1726692379961,2.36737494,60310.0,60309.0,0.001544]
[1726692380229,2.36737494,60310.0,60301.0,0.002902]
[1726692380231,1.592483,60302.0,60301.0,0.002902]
[1726692380467,1.81684504,60302.0,60301.0,0.002902]
[1726692380973,1.84287209,60302.0,60301.0,0.002902]
[1726692381206,1.84087209,60302.0,60301.0,0.002902]
[1726692381466,1.33814109,60302.0,60301.0,0.002902]
[1726692381732,1.28684705,60302.0,60301.0,0.002902]
[1726692382011,0.85518405,60302.0,60301.0,0.002902]
[1726692382721,1.18684705,60302.0,60301.0,0.003902]
[1726692382977,0.86518405,60302.0,60301.0,0.003902]
[1726692383241,1.18684705,60302.0,60301.0,0.002902]
[1726692383764,1.18784705,60302.0,60301.0,0.002902]
[1726692384486,1.18684705,60302.0,60301.0,0.002902]
[1726692384706,1.52051005,60302.0,60301.0,0.002902]
[1726692384926,1.16282,60302.0,60301.0,0.002902]
[1726692386065,1.16082,60302.0,60301.0,0.002902]
[1726692386297,1.492483,60302.0,60301.0,0.002902]
[1726692386555,1.498483,60302.0,60301.0,0.003902]
[1726692387655,1.595483,60302.0,60301.0,0.002902]
[1726692387887,1.90647882,60302.0,60301.0,0.002902]
[1726692388113,1.90647882,60302.0,60295.0,0.001642]
[1726692388114,1.8557,60296.0,60295.0,0.001642]
[1726692388356,2.80775172,60296.0,60295.0,0.001542]
[1726692388572,2.73348782,60296.0,60295.0,0.001542]
[1726692388788,2.80772024,60296.0,60295.0,0.001542]
[1726692389443,2.73348782,60296.0,60295.0,0.001542]
[1726692389699,2.80899968,60296.0,60295.0,0.001542]
[1726692390129,2.81999968,60296.0,60295.0,0.002542]
[1726692390563,2.77946468,60296.0,60295.0,0.002542]
[1726692391073,2.6163791,60296.0,60295.0,0.002542]
[1726692391290,2.66585871,60296.0,60295.0,0.002542]
[1726692391506,2.4453111,60296.0,60295.0,0.002542]
[1726692391712,2.6163791,60296.0,60295.0,0.002542]
[1726692392391,2.66585184,60296.0,60295.0,0.002542]
[1726692392628,2.77946468,60296.0,60295.0,0.002542]
[1726692393317,2.82893742,60296.0,60295.0,0.002542]
[1726692393530,2.6163791,60296.0,60295.0,0.002542]
[1726692395062,2.59034685,60296.0,60295.0,0.002542]
[1726692395971,0.032,60280.0,60279.0,0.24871703]
[1726692396216,0.032,60280.0,60279.0,0.24861703]
[1726692396217,1.13253,60280.0,60279.0,0.24861703]
[1726692396449,1.13253,60280.0,60272.0,0.24871703]
[1726692396450,0.265903,60276.0,60272.0,0.24871703]
[1726692396716,1.261324,60276.0,60272.0,0.24871703]
[1726692396933,1.261324,60276.0,60264.0,0.25036103]
[1726692397601,0.829517,60276.0,60267.0,0.165925]
[1726692397817,0.829517,60276.0,60275.0,0.0997267]
[1726692398034,1.161324,60276.0,60275.0,0.0997267]
[1726692398497,1.18735994,60276.0,60275.0,0.0997267]
[1726692399018,1.19435994,60276.0,60275.0,0.1007267]
[1726692399223,1.18735994,60276.0,60275.0,0.0997267]
[1726692399438,1.18735994,60276.0,60275.0,0.0039267]
[1726692399439,1.45842794,60276.0,60275.0,0.0039267]
[1726692399648,1.53573954,60276.0,60275.0,0.0039267]
[1726692399870,1.95954654,60276.0,60275.0,0.0039267]
[1726692400372,2.29135354,60276.0,60275.0,0.0039267]
[1726692400795,2.29235354,60276.0,60275.0,0.0039267]
[1726692401432,2.29235354,60276.0,60275.0,0.0049267]
[1726692401433,1.96754654,60276.0,60275.0,0.0049267]
[1726692401640,1.88223494,60276.0,60275.0,0.0039267]
[1726692402060,1.89323494,60276.0,60275.0,0.0065707]
[1726692402953,2.22504194,60276.0,60275.0,0.0065707]
[1726692403165,2.38812752,60276.0,60275.0,0.0065707]
[1726692403389,2.05632052,60276.0,60275.0,0.0065707]
[1726692403602,1.63016694,60276.0,60275.0,0.0065707]
[1726692404873,1.80123494,60276.0,60275.0,0.0065707]
[1726692405098,1.775199,60276.0,60275.0,0.0065707]
[1726692405323,1.764199,60276.0,60275.0,0.0055707]
[1726692405536,1.92928458,60276.0,60275.0,0.0055707]
[1726692405745,1.93528458,60276.0,60275.0,0.0055707]
[1726692405959,1.95928458,60276.0,60275.0,0.0055707]
[1726692406679,1.96593658,60276.0,60275.0,0.0055707]
[1726692406893,1.96393658,60276.0,60275.0,0.0055707]
[1726692407576,1.96593658,60276.0,60275.0,0.0055707]
[1726692407793,1.79486858,60276.0,60275.0,0.0055707]
[1726692408003,1.98593658,60276.0,60275.0,0.0055707]
[1726692408425,2.01197689,60276.0,60275.0,0.0055707]
[1726692409933,2.00997689,60276.0,60275.0,0.0055707]
[1726692410161,1.63917131,60276.0,60275.0,0.0055707]
[1726692410375,1.66917131,60276.0,60275.0,0.0055707]
[1726692411231,1.67117131,60276.0,60275.0,0.0055707]
[1726692411453,1.66917131,60276.0,60275.0,0.0055707]
[1726692412095,1.67117131,60276.0,60275.0,0.0055707]
[1726692412306,1.83425689,60276.0,60275.0,0.0055707]
[1726692412972,1.83225689,60276.0,60275.0,0.0055707]
[1726692413834,1.66917131,60276.0,60275.0,0.0055707]
[1726692414064,1.67117131,60276.0,60275.0,0.0055707]
[1726692414804,1.66917131,60276.0,60275.0,0.0055707]
[1726692415016,1.69445352,60276.0,60275.0,0.0055707]
[1726692415562,1.643131,60276.0,60275.0,0.0055707]
[1726692416347,0.51771,60276.0,60275.0,0.1788707]
[1726692416585,0.849517,60276.0,60275.0,0.1788707]
[1726692418220,0.829517,60276.0,60275.0,0.1788707]
[1726692418684,0.831517,60276.0,60275.0,0.1788707]
[1726692418913,0.829517,60276.0,60275.0,0.1788707]
[1726692419381,0.829517,60276.0,60275.0,0.1818707]
[1726692419627,0.829517,60276.0,60275.0,0.1788707]
[1726692419857,0.85655283,60276.0,60275.0,0.1828707]
[1726692420587,0.95655283,60276.0,60275.0,0.1828707]
[1726692420813,1.33969623,60276.0,60275.0,0.0876707]
[1726692421834,1.33869623,60276.0,60275.0,0.0836707]
[1726692422408,1.33869623,60276.0,60275.0,0.0055707]
[1726692422656,1.36869623,60276.0,60275.0,0.0055707]
[1726692422899,1.70250323,60276.0,60275.0,0.0055707]
[1726692423598,1.70050323,60276.0,60275.0,0.0055707]
[1726692423890,1.36869623,60276.0,60275.0,0.0055707]
[1726692424154,1.35170588,60276.0,60275.0,0.0055707]
[1726692424432,1.68351288,60276.0,60275.0,0.0055707]
[1726692424666,1.82533281,60276.0,60275.0,0.0055707]
[1726692424911,1.99640081,60276.0,60275.0,0.0055707]
[1726692425110,1.99940081,60276.0,60275.0,0.0055707]
[1726692425412,1.99640081,60276.0,60275.0,0.0055707]
[1726692425665,2.00040081,60276.0,60275.0,0.0055707]
[1726692426168,1.35570588,60276.0,60275.0,0.0055707]
[1726692426394,1.35570588,60276.0,60275.0,0.0962707]
[1726692426395,0.8848534,60276.0,60275.0,0.0962707]
[1726692426863,1.2166604,60276.0,60275.0,0.0962707]
[1726692427489,1.24269751,60276.0,60275.0,0.0962707]
[1726692428209,1.23869751,60276.0,60275.0,0.0962707]
[1726692428468,1.24169751,60276.0,60275.0,0.0962707]
[1726692429467,0.90989051,60276.0,60275.0,0.0962707]
[1726692429997,0.57808351,60276.0,60275.0,0.0962707]
[1726692430243,0.90989051,60276.0,60275.0,0.0962707]
[1726692430493,0.57808351,60276.0,60275.0,0.0962707]
[1726692430747,0.90989051,60276.0,60275.0,0.0962707]
[1726692431502,0.90689051,60276.0,60275.0,0.0962707]
[1726692431717,0.90989051,60276.0,60275.0,0.0962707]